bitfinex-derivatives/quotes_ETHF0:USTF0_20260125
["timestamp","ask_amount","ask_price","bid_price","bid_amount"]
[1769362019607,2.36699876,2883.1,2881.3,2.43899528]
[1769362019909,2.36699876,2883.1,2881.4,2.037]
[1769362020906,2.36699876,2883.1,2881.4,2.61276528]
[1769362022011,0.00296162,2883.2,2881.7,2.43899528]
[1769362022307,0.00296162,2883.2,2881.8,2.037]
[1769362022507,0.00296162,2883.2,2881.8,4.47599528]
[1769362022703,0.00296162,2883.2,2881.9,2.43899528]
[1769362022899,0.00296162,2883.2,2882.1,0.17373]
[1769362023106,2.45118376,2884.7,2882.7,2.67702065]
[1769362023304,2.45118376,2884.7,2882.8,2.037]
[1769362023605,2.45118376,2884.7,2882.7,2.67702065]
[1769362023803,2.45118376,2884.7,2882.8,2.037]
[1769362024005,2.45436718,2884.7,2882.8,2.037]
[1769362025813,2.45436718,2884.7,2882.9,2.67702065]
[1769362026003,2.45436718,2884.7,2882.9,2.85070065]
[1769362026205,0.00318342,2884.7,2883.2,2.85068065]
[1769362026401,0.00318342,2884.7,2883.6,2.85066065]
[1769362026608,0.00318342,2884.7,2883.7,2.037]
[1769362026801,0.00318342,2884.7,2883.6,2.67702065]
[1769362027713,2.45118376,2885.7,2883.6,2.67702065]
[1769362028211,2.45118376,2885.7,2883.8,2.67702065]
[1769362028420,2.45118376,2885.7,2883.8,2.85065065]
[1769362028713,0.00357954,2885.7,2884.3,0.1736]
[1769362028915,0.00357954,2885.7,2884.5,2.67702065]
[1769362029115,0.00357954,2885.7,2884.7,2.67702065]
[1769362029413,2.45118376,2886.8,2884.7,2.67702065]
[1769362030008,2.45118376,2886.8,2884.8,2.036]
[1769362030208,2.45453289,2886.8,2884.7,2.67702065]
[1769362030512,2.45453289,2886.8,2884.7,4.71302065]
[1769362032108,2.45453289,2886.8,2884.8,2.67702065]
[1769362032308,2.45453289,2886.8,2884.9,0.17356]
[1769362032508,2.45453289,2886.8,2884.9,2.85058065]
[1769362032708,2.45453289,2886.8,2884.7,2.036]
[1769362032709,2.45453289,2886.8,2885.1,2.85057065]
[1769362033812,2.45453289,2886.8,2885.2,2.036]
[1769362034114,0.00334913,2886.8,2885.3,2.67702065]
[1769362034311,0.00334913,2886.8,2885.6,2.85054065]
[1769362035016,0.00334913,2886.8,2885.7,2.79189517]
[1769362035412,2.48993226,2887.8,2885.9,2.61838517]
[1769362036515,2.49432734,2887.8,2885.9,2.61838517]
[1769362038423,2.49432734,2887.8,2886.0,2.035]
[1769362038817,2.49432734,2887.8,2886.0,4.65338517]
[1769362039515,0.00439508,2887.8,2886.1,2.79187517]
[1769362039821,0.00439508,2887.8,2886.3,2.79186517]
[1769362041710,0.00439508,2887.8,2886.4,2.035]
[1769362041916,0.00439508,2887.8,2886.4,2.03945221]
[1769362042416,0.00439508,2887.8,2886.4,0.00445221]
[1769362042417,2.66771734,2887.8,2886.4,0.00445221]
[1769362042612,2.49432734,2887.8,2886.4,0.00445221]
[1769362043927,0.00439508,2887.8,2886.4,2.62283738]
[1769362044820,2.49432734,2887.8,2886.4,0.00445221]
[1769362045025,2.49432734,2887.8,2886.4,2.03845221]
[1769362045226,2.49432734,2887.8,2886.4,0.00445221]
[1769362049523,0.00439508,2887.8,2886.4,0.00445221]
[1769362049724,0.00439508,2887.8,2886.4,2.62283738]
[1769362050124,0.00439508,2887.8,2886.4,2.79630738]
[1769362050824,2.49432734,2887.8,2886.4,0.00445221]
[1769362053330,0.00439508,2887.8,2886.4,0.00445221]
[1769362053830,0.00439508,2887.8,2886.4,2.8106502]
[1769362054230,2.65870565,2887.8,2886.4,0.00445221]
[1769362058334,3.96408682,2887.7,2886.4,0.00445221]
[1769362058533,2.65870565,2887.8,2886.4,0.00445221]
[1769362059241,3.9649538,2887.7,2886.4,0.00445221]
[1769362059430,2.65870565,2887.8,2886.4,0.00445221]
[1769362059631,3.96685734,2887.7,2886.4,0.00445221]
[1769362059837,2.65870565,2887.8,2886.4,0.00445221]
[1769362060037,3.96712025,2887.7,2886.4,0.00445221]
[1769362060237,2.65870565,2887.8,2886.4,0.00445221]
[1769362060438,3.96975881,2887.7,2886.4,0.00445221]
[1769362060639,2.65870565,2887.8,2886.4,0.00445221]
[1769362060937,3.9696059,2887.7,2886.4,0.00445221]
[1769362061138,2.65870565,2887.8,2886.4,0.00445221]
[1769362061340,3.96963154,2887.7,2886.4,0.00445221]
[1769362061542,6.62394211,2887.6,2886.4,0.00445221]
[1769362061841,2.65431057,2887.6,2886.4,0.00445221]
[1769362062338,3.97684013,2887.5,2886.4,0.00445221]
[1769362062538,2.65431057,2887.6,2886.4,0.00445221]
[1769362062739,3.97693317,2887.5,2886.4,0.00445221]
[1769362062941,2.65431057,2887.6,2886.4,0.00445221]
[1769362063144,3.97741019,2887.5,2886.4,0.00445221]
[1769362063343,3.98083425,2887.4,2886.4,0.00445221]
[1769362063542,2.65431057,2887.6,2886.4,0.00445221]
[1769362063742,3.98096942,2887.5,2886.4,0.00445221]
[1769362063942,2.65431057,2887.6,2886.4,0.00445221]
[1769362064244,3.97983863,2887.5,2886.4,0.00445221]
[1769362064446,3.97983863,2887.4,2886.4,0.00445221]
[1769362064744,2.65431057,2887.6,2886.4,0.00445221]
[1769362064943,3.98185756,2887.5,2886.4,0.00445221]
[1769362065145,3.98185756,2887.4,2886.4,0.00445221]
[1769362065339,2.65431057,2887.6,2886.4,0.00445221]
[1769362065642,2.65431057,2887.4,2885.6,2.034]
[1769362065947,2.65431057,2887.2,2885.6,2.034]
[1769362066149,3.9823769,2887.1,2885.6,2.034]
[1769362066348,3.9823769,2887.0,2885.6,2.034]
[1769362066647,3.9823769,2886.9,2885.6,2.03687363]
[1769362066844,2.65431057,2886.7,2885.6,0.00287363]
[1769362067149,6.63425482,2886.6,2885.6,0.00287363]
[1769362067334,3.97994425,2886.5,2885.6,0.00287363]
[1769362067541,2.65431057,2886.4,2884.6,3.468]
[1769362067741,6.63425482,2886.3,2884.5,6.44777799]
[1769362067941,3.97994425,2886.2,2884.6,2.034]
[1769362068145,3.97994425,2886.1,2884.6,2.034]
[1769362068347,2.65431057,2886.3,2884.6,2.034]
[1769362068547,3.97222194,2886.2,2884.6,2.03726338]
[1769362068855,2.65431057,2886.3,2884.6,2.03726338]
[1769362069043,3.97224352,2886.2,2884.6,2.03726338]
[1769362069349,2.65431057,2886.3,2884.6,2.03726338]
[1769362072856,2.65431057,2886.3,2884.7,2.034]
[1769362075451,2.65431057,2886.3,2884.7,4.84019799]
[1769362077055,2.65431057,2886.3,2884.7,2.80619799]
[1769362077257,2.65431057,2886.3,2884.8,2.034]
[1769362077852,2.65431057,2886.3,2884.8,4.84019799]
[1769362078052,2.65431057,2886.8,2884.9,2.80619799]
[1769362078255,2.65431057,2886.6,2885.0,2.034]
[1769362078454,2.65431057,2886.6,2884.7,0.17357]
[1769362078654,2.65431057,2886.6,2884.8,2.034]
[1769362079458,2.65431057,2887.0,2885.2,2.80619799]
[1769362079658,2.65431057,2887.0,2885.2,2.97973799]
[1769362080256,2.65431057,2887.0,2884.7,2.80619799]
[1769362080461,2.65431057,2886.5,2884.6,2.21084338]
[1769362081253,2.65431057,2886.5,2884.7,2.80619799]
[1769362081454,2.65431057,2886.5,2884.6,2.03726338]
[1769362081455,2.65431057,2886.5,2884.9,2.97975799]
[1769362081760,2.65431057,2887.2,2885.1,2.80619799]
[1769362081963,2.65431057,2887.0,2885.1,2.80619799]
[1769362083854,2.65431057,2887.0,2885.1,2.97974799]
[1769362092767,2.65431057,2887.0,2885.3,2.87038536]
[1769362092965,0.00439508,2887.8,2885.5,2.87038536]
[1769362092966,2.87829025,2887.7,2885.5,2.87038536]
[1769362093174,2.87829025,2887.5,2885.7,2.87038536]
[1769362093369,2.87829025,2887.5,2885.8,3.04389536]
[1769362093767,2.87829025,2887.5,2885.8,2.034]
[1769362094663,2.87829025,2887.5,2885.4,2.87038536]
[1769362094868,2.87829025,2887.5,2885.5,2.034]
[1769362095462,2.72695686,2887.3,2885.5,2.034]
[1769362097769,2.72695686,2887.3,2885.4,2.87038536]
[1769362097965,2.72695686,2887.3,2885.4,4.90438536]
[1769362098873,2.72695686,2887.3,2885.5,2.92671836]
[1769362099275,2.72695686,2887.1,2885.5,4.96071836]
[1769362099671,2.72695686,2887.1,2884.9,0.17356]
[1769362099868,2.72695686,2886.7,2884.7,2.034]
[1769362100068,2.72695686,2886.5,2884.7,2.034]
[1769362100877,2.72695686,2886.5,2884.7,4.78718836]
[1769362101063,2.72695686,2886.5,2884.8,2.75318836]
[1769362101268,2.72695686,2886.9,2884.8,2.92675836]
[1769362101468,6.69437339,2886.8,2884.8,2.92675836]
[1769362101771,2.72695686,2886.7,2884.8,2.92675836]
[1769362102275,2.72695686,2886.7,2885.0,2.75318836]
[1769362103375,0.00439508,2887.8,2885.7,2.75318836]
[1769362103571,0.00439508,2887.8,2885.9,2.75318836]
[1769362103771,2.73135194,2887.8,2885.9,2.75318836]
[1769362106074,2.73135194,2887.8,2886.0,8.25518836]
[1769362107782,2.73135194,2887.8,2886.1,2.75318836]
[1769362111382,2.73135194,2887.8,2886.2,2.034]
[1769362112785,2.73135194,2887.8,2886.2,4.72317373]
[1769362112979,2.73135194,2887.8,2886.3,2.89933001]
[1769362119896,2.73135194,2887.8,2886.2,2.034]
[1769362120189,2.73135194,2887.8,2885.8,2.89933001]
[1769362120394,2.73135194,2887.8,2886.2,2.034]
[1769362120794,2.73135194,2887.8,2885.8,2.89933001]
[1769362120992,2.73135194,2887.8,2885.9,2.034]
[1769362121695,2.73135194,2887.8,2886.0,2.89933001]
[1769362121897,2.89149775,2887.6,2885.1,8.88930214]
[1769362122100,7.93735546,2886.9,2884.2,2.89933001]
[1769362122300,2.89149775,2886.4,2883.8,2.89933001]
[1769362122502,2.89149775,2886.2,2883.8,2.89933001]
[1769362122701,5.99771991,2886.3,2884.1,2.89933001]
[1769362122702,2.89149775,2886.0,2884.1,2.89933001]
[1769362127703,2.89149775,2886.0,2884.6,2.90259339]
[1769362128101,2.89149775,2886.0,2884.6,0.00326338]
[1769362134213,2.89149775,2885.8,2884.6,0.00326338]
[1769362134413,4.92649775,2885.8,2884.6,0.00326338]
[1769362139618,2.89149775,2885.7,2884.6,0.00326338]
[1769362139811,2.89476059,2885.7,2884.6,0.00326338]
[1769362141917,0.00326284,2885.7,2884.6,2.90259339]
[1769362145427,4.74878769,2886.6,2884.6,2.90259339]
[1769362145623,2.71378769,2886.5,2884.9,2.88277555]
[1769362146219,2.71672719,2886.5,2884.9,2.88277555]
[1769362146417,2.71672719,2886.5,2884.9,3.05633555]
[1769362146418,0.0029395,2886.5,2884.9,3.05633555]
[1769362153033,0.0029395,2886.5,2885.1,2.88277555]
[1769362155536,0.0029395,2886.5,2885.4,0.81643574]
[1769362155738,0.0029395,2886.5,2885.4,3.626805]
[1769362162441,0.81937524,2886.5,2885.4,2.81036926]
[1769362163838,0.81937524,2886.5,2884.9,2.81036926]
[1769362163839,2.81311704,2886.3,2884.9,2.81036926]
[1769362164045,0.81643574,2886.1,2884.9,2.81036926]
[1769362169554,0.81643574,2886.3,2885.0,2.81036926]
[1769362169852,0.81937524,2886.5,2885.2,2.81036926]
[1769362170041,4.0243122,2886.4,2885.2,2.81036926]
[1769362170246,0.81937524,2886.5,2885.2,2.81036926]
[1769362170647,0.0029395,2886.5,2885.2,2.81036926]
[1769362170847,0.0029395,2886.5,2885.5,0.81643574]
[1769362171846,0.0029395,2886.5,2885.4,2.81036926]
[1769362173963,0.81937524,2886.5,2885.4,2.81036926]
[1769362174266,0.81643574,2886.3,2885.1,0.81643574]
[1769362174462,0.81643574,2886.3,2885.0,3.00194875]
[1769362186775,0.81643574,2886.1,2884.7,2.82838875]
[1769362187669,0.81643574,2886.1,2884.7,3.64482449]
[1769362187967,0.81643574,2886.1,2884.8,2.82838875]
[1769362190380,0.81643574,2885.5,2884.6,0.00326338]
[1769362190677,0.81643574,2885.3,2884.6,0.00326338]
[1769362190877,0.81643574,2885.1,2884.6,0.00326338]
[1769362191175,0.81643574,2885.1,2884.0,2.82838875]
[1769362191974,0.81643574,2885.1,2884.0,2.83274787]
[1769362193772,0.81643574,2884.9,2884.0,2.83274787]
[1769362200576,0.81643574,2885.3,2884.0,3.64918361]
[1769362200778,0.81643574,2885.3,2884.1,2.82838875]
[1769362201286,0.81643574,2885.1,2884.1,2.82838875]
[1769362201482,0.81643574,2884.9,2884.0,0.00435912]
[1769362201779,0.81643574,2884.1,2883.2,2.82838875]
[1769362201986,0.81643574,2883.9,2882.9,2.035]
[1769362202481,0.81643574,2884.7,2883.4,2.82838875]
[1769362202676,0.00342258,2884.7,2883.5,3.64482449]
[1769362203288,0.00342258,2884.7,2883.7,3.69378083]
[1769362203482,0.00342258,2884.7,2883.9,3.48558083]
[1769362205687,0.00342258,2884.7,2883.9,2.87734509]
[1769362210582,0.00342258,2884.7,2883.4,0.17707013]
[1769362210583,0.1736,2884.4,2883.4,0.00342013]
[1769362210887,3.01834278,2884.4,2883.4,0.00342013]
[1769362211084,0.00342258,2884.7,2883.4,0.00342013]
[1769362211384,2.84816536,2884.7,2883.4,0.00342013]
[1769362211584,3.02174536,2884.7,2883.4,0.00342013]
[1769362211989,4.01088636,2884.6,2883.4,0.00342013]
[1769362212185,2.84474278,2884.5,2883.4,0.00342013]
[1769362216396,0.17700258,2884.7,2883.4,0.00342013]
[1769362216586,0.00342258,2884.7,2883.4,2.78081651]
[1769362217298,0.00342258,2884.7,2883.4,2.95446651]
[1769362219093,4.8984209,2885.7,2883.5,2.77739638]
[1769362219296,4.02663631,2885.6,2883.5,2.95104638]
[1769362219491,4.02663631,2885.5,2883.5,2.95104638]
[1769362219694,2.8624209,2885.7,2883.5,2.95104638]
[1769362219896,4.02487328,2885.6,2883.5,2.95104638]
[1769362220096,4.02487328,2885.5,2883.5,2.95104638]
[1769362220296,4.02487328,2885.4,2883.5,2.95104638]
[1769362220501,0.00414027,2885.6,2883.5,2.95104638]
[1769362220800,4.0274931,2885.5,2883.5,2.95104638]
[1769362220993,4.0274931,2885.4,2883.5,2.95104638]
[1769362221193,0.00414027,2885.6,2883.5,2.95104638]
[1769362221395,4.02772659,2885.5,2883.5,2.95104638]
[1769362221600,4.02772659,2885.4,2883.5,2.95104638]
[1769362221795,0.00414027,2885.6,2883.5,2.95104638]
[1769362221996,4.02853976,2885.5,2883.5,2.95104638]
[1769362222197,4.02853976,2885.4,2883.9,2.77739638]
[1769362222394,0.00414027,2885.6,2884.1,2.77739638]
[1769362222994,2.86656117,2885.6,2884.1,2.77739638]
[1769362229406,0.00414027,2885.6,2884.1,2.77739638]
[1769362230500,0.00414027,2885.6,2884.4,2.77739638]
[1769362233704,2.8624209,2886.4,2884.7,2.70067928]
[1769362234006,3.47,2887.0,2883.7,3.471]
[1769362234007,2.80980558,2887.0,2885.1,2.70067928]
[1769362234206,3.47,2887.7,2885.1,2.70067928]
[1769362234508,2.80980558,2887.5,2885.3,2.70067928]
[1769362234710,2.80980558,2887.3,2885.3,4.73567928]
[1769362234910,2.80980558,2887.1,2885.3,4.73567928]
[1769362235208,2.80980558,2887.0,2885.3,4.73567928]
[1769362235509,2.80980558,2887.0,2885.4,2.70067928]
[1769362235715,5.0207621,2887.3,2885.4,2.70067928]
[1769362235904,4.02140503,2887.2,2885.4,2.70067928]
[1769362236105,2.8123421,2887.3,2885.5,0.17353]
[1769362236307,2.8123421,2887.3,2885.6,2.70067928]
[1769362238608,0.00253652,2887.3,2885.6,2.87419928]
[1769362242097,0.00253652,2887.3,2885.5,0.00436115]
[1769362242098,0.00253652,2887.3,2885.8,2.70067928]
[1769362242506,0.00253652,2887.3,2886.0,0.1735]
[1769362242809,2.80980558,2888.1,2886.3,2.70067928]
[1769362243010,2.80980558,2888.1,2886.5,2.70067928]
[1769362243203,0.17335,2888.4,2886.5,2.70067928]
[1769362243410,2.80980558,2888.5,2886.5,2.70067928]
[1769362243806,2.81358899,2888.5,2886.5,2.70067928]
[1769362245714,2.81358899,2888.5,2886.5,2.87413928]
[1769362246005,2.81358899,2888.5,2887.0,2.70067928]
[1769362246006,0.00378341,2888.5,2887.0,2.70067928]
[1769362246413,2.80980558,2890.1,2887.5,2.70067928]
[1769362246613,2.80980558,2889.9,2887.7,2.70067928]
[1769362246808,0.17327,2889.8,2887.7,2.70067928]
[1769362247014,2.98307558,2889.7,2887.7,4.73467928]
[1769362247416,2.98650015,2889.7,2887.7,4.73796797]
[1769362247714,2.98650015,2889.7,2887.8,2.70067928]
[1769362250014,2.80980558,2889.5,2887.7,0.00328869]
[1769362250514,2.98310558,2889.3,2887.7,0.00328869]
[1769362251013,2.80980558,2888.6,2886.4,3.468]
[1769362251214,2.80980558,2888.6,2886.5,2.034]
[1769362252119,2.80980558,2889.0,2886.8,2.87412928]
[1769362252313,2.80980558,2889.0,2887.1,2.70067928]
[1769362253126,2.80980558,2889.5,2887.4,2.70067928]
[1769362253423,2.80980558,2889.5,2887.6,2.70067928]
[1769362253615,2.80980558,2889.5,2887.3,0.17341]
[1769362253814,2.80980558,2889.5,2887.3,4.90708928]
[1769362254120,2.80980558,2889.5,2887.4,2.70067928]
[1769362254515,2.98309558,2889.5,2887.4,2.70067928]
[1769362255417,2.80980558,2889.3,2887.4,2.70067928]
[1769362255811,0.17331,2889.1,2886.8,2.70067928]
[1769362256017,2.80980558,2889.0,2886.9,2.033]
[1769362256314,2.80980558,2888.8,2886.9,2.033]
[1769362256722,2.80980558,2888.6,2886.8,2.70067928]
[1769362259827,2.98314558,2888.6,2886.8,2.70067928]
[1769362260228,2.80980558,2888.4,2886.8,2.70067928]
[1769362260623,2.80980558,2888.4,2886.5,0.00431422]
[1769362260824,2.80980558,2888.2,2886.5,0.00431422]
[1769362261628,0.17335,2888.4,2886.5,2.7049935]
[1769362261829,4.01030471,2888.3,2886.5,2.7049935]
[1769362262126,0.17335,2888.4,2886.5,2.7049935]
[1769362262429,4.01200888,2888.3,2886.5,2.7049935]
[1769362262731,4.01200888,2888.2,2886.5,2.7049935]
[1769362262926,0.17335,2888.4,2886.5,2.7049935]
[1769362263123,4.01158424,2888.3,2886.5,2.7049935]
[1769362263434,4.01158424,2888.2,2886.5,2.7049935]
[1769362263724,0.17335,2888.4,2886.5,2.7049935]
[1769362264321,4.01723432,2888.3,2886.5,2.7049935]
[1769362264523,0.17335,2888.4,2886.5,2.7049935]
[1769362264834,2.033,2888.7,2886.5,0.00431422]
[1769362264835,3.09216587,2888.2,2886.5,0.00431422]
[1769362265028,2.91879587,2888.0,2886.5,0.00431422]
[1769362266036,2.91879587,2887.6,2886.5,0.00431422]
[1769362266223,2.91879587,2887.5,2886.5,0.00431422]
[1769362270727,6.9376446,2887.4,2886.5,0.00431422]
[1769362270923,2.91879587,2887.4,2886.5,0.00431422]
[1769362272135,0.0030412,2887.6,2886.5,0.00431422]
[1769362273438,0.0030412,2887.6,2886.5,2.79443478]
[1769362274026,0.0030412,2887.6,2886.5,0.00431422]
[1769362277836,2.95155299,2887.6,2886.5,0.00431422]
[1769362284142,4.02503386,2887.5,2886.5,0.00431422]
[1769362284436,2.94851179,2887.5,2886.5,0.00431422]
[1769362285933,2.94851179,2887.3,2885.5,3.01794546]
[1769362286140,2.94851179,2887.3,2885.5,5.05194546]
[1769362286634,2.94851179,2887.3,2885.6,2.84442546]
[1769362287035,2.94851179,2887.3,2885.6,2.84741802]
[1769362287742,4.12373607,2887.1,2885.6,0.00299256]
[1769362287936,2.94851179,2886.9,2885.6,0.00299256]
[1769362289037,0.17343,2887.1,2885.6,2.84741802]
[1769362289237,0.0030412,2887.6,2885.6,2.84741802]
[1769362289436,4.02860243,2887.5,2885.6,2.84741802]
[1769362289637,4.02860243,2887.4,2885.6,2.84741802]
[1769362289846,4.02860243,2887.3,2885.6,2.84741802]
[1769362290044,2.94851179,2887.5,2885.6,2.84741802]
[1769362290238,4.02890231,2887.4,2885.6,2.84741802]
[1769362290543,0.0030412,2887.6,2885.6,2.84741802]
[1769362290734,4.02890672,2887.5,2885.6,2.84741802]
[1769362290933,4.02890672,2887.4,2885.6,2.84741802]
[1769362291134,0.0030412,2887.6,2885.6,2.84741802]
[1769362291331,4.02900139,2887.5,2885.8,2.84442546]
[1769362291536,0.0030412,2887.6,2886.0,2.84442546]
[1769362291733,4.02975084,2887.5,2886.0,2.84442546]
[1769362291938,0.0030412,2887.6,2886.0,2.84442546]
[1769362292138,4.03030883,2887.5,2886.0,2.84442546]
[1769362292343,0.0030412,2887.6,2886.0,2.84442546]
[1769362292542,4.03133062,2887.5,2886.0,2.84442546]
[1769362292744,0.0030412,2887.6,2886.0,2.84442546]
[1769362292945,4.03184163,2887.5,2886.0,2.84442546]
[1769362293146,2.89611453,2887.6,2885.7,0.17351]
[1769362293348,2.89307333,2887.4,2885.8,2.034]
[1769362294550,2.89307333,2887.4,2885.8,5.04599551]
[1769362296738,0.0030412,2887.6,2885.9,3.01199551]
[1769362296951,4.03901221,2887.5,2885.9,3.01199551]
[1769362297150,0.0030412,2887.6,2885.9,3.01199551]
[1769362297346,4.03887307,2887.5,2885.9,3.01199551]
[1769362297546,4.03889612,2887.4,2885.9,3.01199551]
[1769362297746,0.0030412,2887.6,2885.9,3.01199551]
[1769362297948,2.89307333,2887.4,2885.9,3.01199551]
[1769362298146,2.89307333,2887.4,2885.9,5.04599551]
[1769362298547,2.89307333,2887.4,2885.9,3.01199551]
[1769362298747,2.89307333,2887.2,2885.8,2.034]
[1769362299747,2.89307333,2887.2,2885.6,0.00299256]
[1769362299950,2.89307333,2887.2,2885.7,2.034]
[1769362300752,2.89307333,2887.2,2885.6,0.00299256]
[1769362301055,2.89307333,2887.0,2885.6,0.00299256]
[1769362301352,6.92821398,2886.9,2885.6,0.00299256]
[1769362301554,2.89307333,2886.9,2885.6,0.00299256]
[1769362304150,0.17343,2887.1,2885.6,0.00299256]
[1769362304356,2.89307333,2886.9,2885.6,0.00299256]
[1769362305157,4.03192787,2886.8,2885.6,0.00299256]
[1769362305456,2.89307333,2886.9,2885.6,0.00299256]
[1769362305758,4.03065424,2886.8,2885.6,0.00299256]
[1769362306056,2.89307333,2886.9,2885.6,0.00299256]
[1769362306250,4.03094858,2886.8,2885.6,0.00299256]
[1769362306451,2.89307333,2886.7,2885.6,0.00299256]
[1769362306753,7.08289891,2887.6,2884.7,6.47999551]
[1769362306754,2.89307333,2886.5,2884.7,6.47999551]
[1769362306960,2.89307333,2886.3,2884.7,6.47999551]
[1769362307661,2.89307333,2886.7,2884.8,3.01199551]
[1769362307846,3.06650333,2887.2,2885.0,3.01199551]
[1769362308053,6.92213133,2887.1,2885.0,3.01199551]
[1769362308252,6.92213133,2887.0,2885.0,3.01199551]
[1769362308448,4.029058,2886.9,2885.0,3.01199551]
[1769362308653,2.89307333,2887.0,2885.2,3.01199551]
[1769362309559,0.17343,2887.2,2885.2,3.18553551]
[1769362309861,4.03020149,2887.1,2885.2,3.18553551]
[1769362310058,0.17343,2887.2,2885.2,3.18553551]
[1769362310360,2.89307333,2887.4,2885.4,3.01199551]
[1769362310563,4.03067246,2887.3,2885.6,3.01199551]
[1769362310763,4.03067246,2887.2,2885.6,3.01199551]
[1769362310959,2.89307333,2887.4,2885.6,3.01199551]
[1769362311163,4.03066511,2887.3,2885.6,3.01199551]
[1769362311364,4.03066511,2887.2,2885.6,3.01199551]
[1769362311555,2.89307333,2887.4,2885.6,3.01199551]
[1769362311761,4.03090223,2887.3,2885.6,3.01199551]
[1769362312058,4.03090223,2887.2,2885.6,3.01199551]
[1769362312260,2.89307333,2887.4,2885.6,3.01199551]
[1769362312560,4.03101951,2887.3,2885.6,3.01199551]
[1769362312859,2.89307333,2887.4,2885.6,3.01199551]
[1769362313161,4.0310738,2887.3,2885.6,3.01199551]
[1769362313364,2.89307333,2887.4,2885.6,3.18551551]
[1769362313858,2.89307333,2887.4,2885.7,2.034]
[1769362314160,2.89307333,2887.4,2885.8,2.034]
[1769362318564,2.89307333,2886.4,2884.5,3.18558551]
[1769362318754,4.02783023,2886.3,2884.7,0.00378381]
[1769362318956,2.89307333,2886.1,2884.7,0.00378381]
[1769362319662,2.89307333,2885.9,2884.7,0.00378381]
[1769362319862,2.89307333,2885.7,2884.7,0.00378381]
[1769362321266,0.1735,2886.0,2884.7,0.00378381]
[1769362321462,3.06657333,2886.0,2884.7,0.00378381]
[1769362321663,2.89307333,2885.8,2884.7,0.00378381]
[1769362323864,1.17522428,2886.0,2883.6,2.90838466]
[1769362323865,3.06268875,2885.6,2883.6,2.90838466]
[1769362324069,2.88915875,2885.4,2883.6,2.90838466]
[1769362324872,2.89288797,2885.4,2883.6,2.91213179]
[1769362326774,0.00372922,2885.4,2883.6,3.08577179]
[1769362327461,0.00372922,2885.4,2883.8,2.90838466]
[1769362328060,0.00372922,2885.4,2883.9,5.504]
[1769362328275,0.00372922,2885.4,2883.9,8.41238466]
[1769362328866,0.00372922,2885.4,2883.9,2.90838466]
[1769362329063,0.00372922,2885.4,2884.0,4.94338466]
[1769362329772,0.00372922,2885.4,2884.1,2.035]
[1769362330775,0.00372922,2885.4,2884.0,2.90838466]
[1769362330977,0.00372922,2885.4,2884.1,2.035]
[1769362332479,0.00372922,2885.4,2884.2,2.90838466]
[1769362337879,0.00372922,2885.4,2883.8,2.83515782]
[1769362338181,2.77521084,2885.4,2883.9,2.035]
[1769362341484,2.77521084,2885.4,2883.9,4.87015782]
[1769362342172,0.17354,2885.3,2883.6,0.00374713]
[1769362342483,2.94502162,2885.3,2883.6,2.03874713]
[1769362343482,2.94502162,2885.3,2883.6,0.00374713]
[1769362343682,2.77148162,2885.1,2883.6,0.00374713]
[1769362344684,2.94503162,2885.1,2883.6,0.00374713]
[1769362344874,2.77148162,2884.9,2883.6,0.00374713]
[1769362345972,3.47372922,2885.4,2883.6,0.00374713]
[1769362345973,2.94506162,2884.7,2883.6,0.00374713]
[1769362346382,2.77148162,2884.5,2882.7,2.83515782]
[1769362347378,2.77148162,2884.5,2882.7,2.83942143]
[1769362347981,2.77148162,2884.9,2882.7,3.01311143]
[1769362348174,4.0127978,2884.8,2882.7,3.01311143]
[1769362348378,4.0127978,2884.7,2882.7,3.01311143]
[1769362348587,2.77148162,2884.9,2882.7,3.01311143]
[1769362348784,4.01876826,2884.8,2882.9,2.83515782]
[1769362349088,2.77148162,2885.2,2882.9,3.00883782]
[1769362349281,6.79023866,2885.1,2882.9,3.00883782]
[1769362349481,4.01875704,2885.0,2882.9,3.00883782]
[1769362350283,4.01875704,2885.0,2883.2,2.83515782]
[1769362352890,2.77148162,2884.9,2883.2,2.83515782]
[1769362353089,2.77148162,2884.9,2883.3,5.506]
[1769362353587,2.77148162,2884.9,2883.3,8.31194444]
[1769362354288,2.77148162,2884.9,2883.3,2.80594444]
[1769362354491,2.77148162,2884.9,2883.4,2.035]
[1769362354992,2.77148162,2884.9,2883.3,2.80594444]
[1769362355193,2.77148162,2884.9,2883.3,4.84094444]
[1769362357494,2.91586097,2885.3,2883.4,2.80594444]
[1769362357788,2.91586097,2885.1,2883.4,2.80594444]
[1769362358101,2.91586097,2884.9,2883.2,0.17366]
[1769362358393,2.91586097,2884.9,2883.3,2.035]
[1769362359393,2.91586097,2884.7,2883.0,2.80594444]
[1769362359586,2.91586097,2884.7,2883.0,4.84094444]
[1769362360996,2.91586097,2884.5,2883.0,4.84094444]
[1769362363789,2.91586097,2884.5,2883.0,2.035]
[1769362363990,3.08945097,2884.5,2882.9,2.036]
[1769362366096,4.01589366,2884.4,2882.9,2.036]
[1769362366387,2.91586097,2884.3,2882.9,2.036]
[1769362368196,2.91586097,2884.3,2882.9,4.84194444]
[1769362369896,2.91586097,2884.7,2883.0,2.80594444]
[1769362370097,4.01916572,2884.6,2883.0,2.80594444]
[1769362370294,4.01916572,2884.5,2883.0,2.80594444]
[1769362370497,4.01916572,2884.4,2883.0,2.80594444]
[1769362370801,2.91586097,2884.7,2883.0,2.80594444]
[1769362370996,2.91586097,2884.5,2883.0,2.80594444]
[1769362371191,6.93613151,2884.4,2883.0,4.84194444]
[1769362371497,2.91586097,2884.4,2883.0,4.84194444]
[1769362372100,4.02355517,2884.3,2883.0,4.84194444]
[1769362372305,2.91586097,2884.4,2883.0,4.84194444]
[1769362372596,4.02342781,2884.3,2883.0,4.84194444]
[1769362372792,2.91586097,2884.4,2883.0,4.84194444]
[1769362372993,4.02342427,2884.3,2883.0,4.84194444]
[1769362373195,2.91586097,2884.4,2883.0,4.84194444]
[1769362373390,4.02395484,2884.3,2883.0,4.84194444]
[1769362373591,2.91586097,2884.4,2883.0,4.84194444]
[1769362373791,4.02373128,2884.3,2883.0,4.84194444]
[1769362373996,2.91586097,2884.4,2883.0,4.84194444]
[1769362374198,4.02281509,2884.3,2883.0,4.84194444]
[1769362374398,2.91586097,2884.4,2883.0,4.84194444]
[1769362374598,4.02307116,2884.3,2883.0,4.84194444]
[1769362374801,2.91586097,2884.4,2883.0,4.84194444]
[1769362374997,4.02264599,2884.3,2883.0,4.84194444]
[1769362375198,2.91586097,2884.4,2883.0,4.84194444]
[1769362375393,4.02274439,2884.3,2883.0,4.84194444]
[1769362375594,2.91586097,2884.4,2883.0,4.84194444]
[1769362375995,2.91586097,2884.4,2883.0,2.80594444]
[1769362376197,2.91586097,2884.4,2883.0,4.84194444]
[1769362378102,0.17357,2884.7,2883.1,2.80594444]
[1769362378404,4.02258124,2884.6,2883.1,2.80594444]
[1769362378702,4.02258124,2884.5,2883.1,2.80594444]
[1769362378902,4.02258124,2884.4,2883.1,2.80594444]